fUST/lending_fUST_20240905
["ID","MTS","AMOUNT","RATE_DAILY","PERIOD"]
[337241039,1725528638870,-500.0,0.00021191,7]
[337241041,1725528638879,-500.0,0.00021191,7]
[337241043,1725528638888,-500.0,0.00021191,7]
[337241045,1725528638898,-500.0,0.00021191,7]
[337241047,1725528638908,-500.0,0.00021191,7]
[337241049,1725528638918,-500.0,0.00021191,7]
[337241051,1725528638927,-500.0,0.00021191,7]
[337241053,1725528638936,-500.0,0.00021191,7]
[337241055,1725528638945,-500.0,0.00021191,7]
[337241057,1725528638955,-500.0,0.00021191,7]
[337241059,1725528638964,-500.0,0.00021191,7]
[337241061,1725528638974,-500.0,0.00021191,7]
[337241063,1725528638984,-500.0,0.00021191,7]
[337241065,1725528638993,-500.0,0.00021191,7]
[337241067,1725528639003,-500.0,0.00021191,7]
[337241069,1725528639012,-500.0,0.00021191,7]
[337241071,1725528639021,-500.0,0.00021191,7]
[337241073,1725528639031,-500.0,0.00021191,7]
[337241075,1725528639046,-360.72,0.00021191,7]
[337241078,1725528639056,-500.0,0.00021191,7]
[337241080,1725528639066,-15288.98717215,0.000212,2]
[337241082,1725528639075,-8730.6770534,0.00021212,2]
[337241084,1725528639086,-1000.0,0.00021212,2]
[337241086,1725528639096,-225.990218,0.00021226,2]
[337241088,1725528639106,-225.990218,0.00021282,2]
[337241090,1725528639118,-1110.06,0.00021292,3]
[337241092,1725528639128,-150.112233,0.000213,5]
[337241094,1725528639138,-150.112233,0.000213,4]
[337241096,1725528639147,-150.112233,0.000213,2]
[337241098,1725528639157,-150.112233,0.000213,4]
[337241100,1725528639166,-500.0,0.00021301,2]
[337241102,1725528639176,-270.65441468,0.00021301,2]
[337241104,1725528639186,-422.63293454,0.00021301,2]
[337241106,1725528639196,-192.27879761,0.00021301,2]
[337241109,1725528639209,-500.0,0.00021301,2]
[337241111,1725528639218,-500.0,0.00021301,2]
[337241113,1725528639230,-622.58829076,0.00021301,2]
[337241115,1725528639239,-500.0,0.00021301,2]
[337241117,1725528639248,-489.37868848,0.00021301,2]
[337241119,1725528639258,-467793.964211,0.00021302,3]
[337241121,1725528639267,-129948.06668689,0.00021302,2]
[337241123,1725528639280,-71804.85316103,0.00021302,2]
[337241195,1725528640696,-1574.5,0.00021302,2]
[337241270,1725528643709,-555.03,0.00021292,3]
[337241272,1725528643718,-14670.15329003,0.00021302,2]
[337241300,1725528700030,168.776605,0.00020458,2]
[337241301,1725528803137,250.0,0.0002011,2]
[337241302,1725528951457,10000.0,0.00027,120]
[337241303,1725528959165,10000.0,0.00027,120]
[337241304,1725528980334,6282.0,0.00027,120]
[337241306,1725529164118,16694.8280239,0.00020048,2]
[337241307,1725529315873,166.003353,0.00020167,2]
[337241308,1725529316083,166.003353,0.00020248,2]
[337241309,1725529316304,166.003353,0.00020329,2]
[337241310,1725529316521,166.003353,0.0002041,2]
[337241311,1725529316736,166.003353,0.00020491,2]
[337241320,1725529767875,178.220851,0.00019658,2]
[337241321,1725529807262,5486.78096869,0.000165,2]
[337241322,1725529807381,150.0,0.0002002,2]
[337241323,1725529807621,5486.78096869,0.00016933,2]
[337241324,1725529807713,150.0,0.00020385,2]
[337241325,1725529807973,5486.78096869,0.00017022,2]
[337241326,1725529808308,5486.78096869,0.00017411,2]
[337241327,1725529808642,5486.78096869,0.00017693,2]
[337241328,1725529809005,5486.78096869,0.0001806,2]
[337241329,1725529809338,5486.78096869,0.00018301,2]
[337241330,1725529809942,5486.78096869,0.00018521,2]
[337241331,1725529810112,5486.78096869,0.00018902,2]
[337241332,1725529810451,5486.78096869,0.00019153,2]
[337241333,1725529810798,5486.78096869,0.0001919,2]
[337241334,1725529811201,5486.78096869,0.0001966,2]
[337241335,1725529811605,5486.78096869,0.0001977,2]
[337241336,1725529811997,5486.78096869,0.00020063,2]
[337241337,1725529812323,5486.78096869,0.00020304,2]
[337241346,1725529831758,-192.45259469,0.00020535,2]
[337241347,1725529831767,-166.003353,0.00020572,2]
[337241348,1725529831777,-153.00305231,0.0002062,2]
[337241349,1725529831790,-4048.36998365,0.0002062,2]
[337241395,1725529837912,-1285.40793273,0.0002062,2]
[337241397,1725529837922,-166.003353,0.00020652,2]
[337241399,1725529837933,-166.003353,0.00020733,2]
[337241402,1725529837943,-295.73553305,0.00020752,2]
[337241404,1725529837955,-250.8,0.000208,2]
[337241406,1725529837967,-166.003353,0.00020814,2]
[337241408,1725529837984,-166.003353,0.00020895,2]
[337241410,1725529837994,-5486.78096882,0.00020973,2]
[337241412,1725529838003,-166.003353,0.00020976,2]
[337241414,1725529838013,-5193.98295303,0.00020982,2]
[337241416,1725529838023,-376.268262,0.00020986,2]
[337241418,1725529838032,-300.0,0.00020999,2]
[337241420,1725529838043,-300.0,0.00020999,2]
[337241422,1725529838054,-15288.98717215,0.00021,2]
[337241424,1725529838064,-1000.0,0.00021002,2]
[337241427,1725529838074,-166.003353,0.00021057,2]
[337241429,1725529838084,-2140.83433145,0.00021073,2]
[337241431,1725529838094,-8730.6770534,0.00021082,2]
[337241433,1725529838104,-1017.55,0.00021082,3]
[337241435,1725529838115,-508.78,0.00021082,3]
[337241437,1725529838126,-254.39,0.00021082,3]
[337241439,1725529838137,-763.17,0.00021082,3]
[337241442,1725529838149,-8730.6770534,0.00021084,2]
[337241444,1725529838158,-8730.6770534,0.00021087,2]
[337241446,1725529838169,-8730.6770534,0.00021089,2]
[337241448,1725529838179,-8730.6770534,0.00021091,2]
[337241451,1725529838192,-500.0,0.00021091,2]
[337241453,1725529838202,-500.0,0.00021091,2]
[337241455,1725529838212,-531.00809943,0.00021091,2]
[337241457,1725529838224,-340.44081963,0.00021091,2]
[337241459,1725529838234,-500.0,0.00021091,2]
[337241461,1725529838245,-500.0,0.00021091,2]
[337241463,1725529838255,-500.0,0.00021091,2]
[337241465,1725529838264,-500.0,0.00021091,2]
[337241467,1725529838273,-500.0,0.00021091,2]
[337241469,1725529838283,-500.0,0.00021091,2]
[337241471,1725529838292,-500.0,0.00021091,2]
[337241473,1725529838302,-500.0,0.00021091,2]
[337241475,1725529838312,-500.0,0.00021091,2]
[337241477,1725529838322,-156150.286329,0.00021092,3]
[337241479,1725529838332,-125461.013488,0.00021092,2]
[337241481,1725529838342,-55555.0,0.00021102,3]
[337241483,1725529838352,-166.003353,0.00021137,2]
[337241486,1725529838361,-353.38973302,0.00021171,2]
[337241488,1725529838371,-500.0,0.00021171,2]
[337241490,1725529838384,-500.0,0.00021171,2]
[337241492,1725529838395,-192.27879761,0.00021171,2]
[337241495,1725529838409,-500.0,0.00021171,2]
[337241497,1725529838420,-500.0,0.00021171,2]
[337241499,1725529838435,-500.0,0.00021171,2]
[337241501,1725529838447,-270.50850798,0.00021171,2]
[337241503,1725529838457,-500.0,0.00021171,2]
[337241506,1725529838468,-500.0,0.00021171,2]
[337241508,1725529838481,-242.58829076,0.00021171,2]
[337241510,1725529838491,-500.0,0.00021171,2]
[337241512,1725529838502,-500.0,0.00021171,2]
[337241514,1725529838512,-500.0,0.00021171,2]
[337241516,1725529838522,-221268.11262321,0.00021172,3]
[337241578,1725529839881,-91032.46003379,0.00021172,3]
[337241580,1725529839891,-65890.57383533,0.00021172,2]
[337241643,1725529843588,-391.07204678,0.00021172,2]
[337241644,1725529843601,-4379.29849856,0.00021172,2]
[337241653,1725529845972,-1729.54799274,0.00021172,2]
[337241654,1725529846005,-20179.50045013,0.00021172,2]
[337241655,1725529856216,166.003353,0.00020334,2]
[337241664,1725530227522,15439.7535076,0.00020103,2]
[337241665,1725530279105,180.7262807,0.00019862,2]
[337241669,1725530599551,299.33,0.0002051,2]
[337241677,1725530963051,166.0033641,0.00020205,2]
[337241704,1725531031945,-250.8,0.000208,2]
[337241705,1725531031955,-3753.53251476,0.00020978,2]
[337241730,1725531038124,-791.20256915,0.00020978,2]
[337241732,1725531038134,-210.68668025,0.00020986,2]
[337241734,1725531038146,-146.76816875,0.00020986,2]
[337241736,1725531038156,-300.0,0.00021077,2]
[337241738,1725531038167,-300.0,0.00021077,2]
[337241740,1725531038177,-15473.71161786,0.00021078,3]
[337241806,1725531221454,200.0,0.0002,2]
[337241807,1725531221876,250.8,0.0002,2]
[337241808,1725531474018,166.003353,0.00020192,2]
[337241809,1725531619428,757.22130505,0.00020223,2]
[337241816,1725532042286,6182.67,0.0002051,2]
[337241818,1725532099042,4651.96177662,0.0002,2]
[337241819,1725532118076,200.0,0.0002,2]
[337241820,1725532118316,250.8,0.0002,2]
[337241821,1725532120528,49229.05858303,0.00020377,2]
[337241822,1725532120555,5820.0533317,0.00020377,2]
[337241823,1725532120582,34199.95325504,0.00020377,2]
[337241824,1725532121659,20809.20015278,0.0002,2]
[337241825,1725532122157,8234.00030059,0.0001999,2]
[337241858,1725532232232,-265.2880102,0.00020726,2]
[337241902,1725532238349,-34.7119898,0.00020726,2]
[337241903,1725532238359,-300.0,0.00020726,2]
[337241904,1725532238368,-108928.26315719,0.00020727,2]
[337241905,1725532238377,-8730.6770534,0.00020836,2]
[337241906,1725532238386,-2140.83433145,0.00020836,2]
[337241907,1725532238398,-8730.6770534,0.00020836,2]
[337241908,1725532238410,-8730.6770534,0.00020837,2]
[337241909,1725532238419,-106294.36799638,0.00020837,15]
[337241910,1725532238431,-8730.6770534,0.00020837,2]
[337241911,1725532238441,-8730.6770534,0.00020837,2]
[337241912,1725532238452,-1000.0,0.00020882,2]
[337241913,1725532238461,-1000.0,0.00020882,2]
[337241914,1725532238471,-508.78,0.00020926,3]
[337241915,1725532238482,-254.39,0.00020926,3]
[337241916,1725532238491,-763.17,0.00020926,3]
[337241917,1725532238501,-1017.55,0.00020927,3]
[337241918,1725532238511,-22375.42528417,0.00020929,2]
[337241919,1725532238524,-531.00809943,0.00020935,2]
[337241920,1725532238535,-500.0,0.00020935,2]
[337241921,1725532238547,-500.0,0.00020935,2]
[337241922,1725532238556,-500.0,0.00020935,2]
[337241923,1725532238566,-500.0,0.00020935,2]
[337241924,1725532238576,-500.0,0.00020935,2]
[337241925,1725532238587,-500.0,0.00020935,2]
[337241926,1725532238598,-500.0,0.00020935,2]
[337241927,1725532238607,-500.0,0.00020935,2]
[337241928,1725532238617,-500.0,0.00020935,2]
[337241929,1725532238629,-340.44081963,0.00020935,2]
[337241930,1725532238641,-500.0,0.00020935,2]
[337241931,1725532238650,-500.0,0.00020935,2]
[337241932,1725532238660,-353.38973302,0.00020936,2]
[337241933,1725532238669,-500.0,0.00020936,2]
[337241934,1725532238678,-500.0,0.00020936,2]
[337241935,1725532238687,-500.0,0.00020936,2]
[337241936,1725532238697,-500.0,0.00020936,2]
[337241937,1725532238707,-500.0,0.00020936,2]
[337241938,1725532238716,-500.0,0.00020936,2]
[337241939,1725532238726,-500.0,0.00020936,2]
[337241940,1725532238735,-270.50850798,0.00020936,2]
[337241941,1725532238745,-242.58829076,0.00020936,2]
[337241942,1725532238755,-500.0,0.00020936,2]
[337241943,1725532238764,-500.0,0.00020936,2]
[337241944,1725532238774,-192.27879761,0.00020936,2]
[337241945,1725532238784,-300.0,0.00020936,2]
[337241946,1725532238793,-161734.21990092,0.00020936,15]
[337241947,1725532238803,-153781.014362,0.00020937,3]
[337241948,1725532238813,-4518.41645575,0.00020937,2]
[337241949,1725532238829,-11664.46333313,0.00020937,2]
[337242026,1725533021163,200.0,0.0002,2]
[337242027,1725533021630,250.8,0.0002,2]
[337242032,1725533362014,1500.0,0.0002,2]
[337242033,1725533387100,2004.18158676,0.000205,2]
[337242074,1725533432463,-300.0,0.00020687,2]
[337242076,1725533432474,-477.46748131,0.00020688,7]
[337242077,1725533432488,-22.53251869,0.00020688,7]
[337242079,1725533432498,-500.0,0.00020688,7]
[337242081,1725533432509,-500.0,0.00020688,7]
[337242083,1725533432519,-500.0,0.00020688,7]
[337242085,1725533432528,-500.0,0.00020688,7]
[337242086,1725533432538,-500.0,0.00020688,7]
[337242088,1725533432549,-500.0,0.00020688,7]
[337242090,1725533432561,-500.0,0.00020688,7]
[337242092,1725533432576,-500.0,0.00020688,7]
[337242094,1725533432587,-360.72,0.00020688,7]
[337242096,1725533432599,-500.0,0.00020688,7]
[337242098,1725533432609,-500.0,0.00020688,7]
[337242099,1725533432619,-426.74748131,0.00020688,7]
[337242131,1725533438455,-73.25251869,0.00020688,7]
[337242133,1725533438464,-500.0,0.00020688,7]
[337242134,1725533438474,-500.0,0.00020688,7]
[337242136,1725533438483,-500.0,0.00020688,7]
[337242138,1725533438492,-500.0,0.00020688,7]
[337242140,1725533438501,-500.0,0.00020688,7]
[337242142,1725533438510,-500.0,0.00020688,7]
[337242144,1725533438521,-500.0,0.00020688,7]
[337242146,1725533438531,-410.87,0.00020688,7]
[337242148,1725533438541,-500.0,0.00020688,7]
[337242150,1725533438552,-500.0,0.00020688,7]
[337242153,1725533438562,-500.0,0.00020688,7]
[337242154,1725533438573,-500.0,0.00020688,7]
[337242156,1725533438582,-500.0,0.00020688,7]
[337242158,1725533438592,-500.0,0.00020688,7]
[337242160,1725533438602,-500.0,0.00020688,7]
[337242163,1725533438612,-500.0,0.00020688,7]
[337242165,1725533438622,-500.0,0.00020688,7]
[337242167,1725533438631,-587.48,0.00020688,7]
[337242168,1725533438641,-500.0,0.00020688,7]
[337242171,1725533438653,-500.0,0.00020688,7]
[337242173,1725533438664,-500.0,0.00020688,7]
[337242175,1725533438674,-500.0,0.00020688,7]
[337242177,1725533438684,-500.0,0.00020688,7]
[337242179,1725533438693,-500.0,0.00020688,7]
[337242181,1725533438703,-1000.0,0.00020688,2]
[337242183,1725533438712,-1000.0,0.00020795,2]
[337242185,1725533438722,-3492.27082136,0.00020795,2]
[337242187,1725533438731,-3492.27082136,0.000208,2]
[337242189,1725533438740,-3492.27082136,0.00020806,2]
[337242191,1725533438749,-1926.75089835,0.00020806,2]
[337242193,1725533438759,-3492.27082136,0.00020811,2]
[337242195,1725533438768,-3492.27082136,0.00020816,2]
[337242197,1725533438778,-55555.0,0.00020816,3]
[337242199,1725533438787,-254.39,0.00020832,3]
[337242201,1725533438797,-508.78,0.00020842,3]
[337242203,1725533438807,-1017.55,0.00020852,3]
[337242205,1725533438816,-763.17,0.00020852,3]
[337242207,1725533438826,-500.0,0.00020861,2]
[337242209,1725533438837,-500.0,0.00020861,2]
[337242211,1725533438848,-531.00809943,0.00020861,2]
[337242213,1725533438860,-500.0,0.00020861,2]
[337242215,1725533438869,-500.0,0.00020861,2]
[337242218,1725533438879,-290.44081963,0.00020861,2]
[337242220,1725533438888,-500.0,0.00020861,2]
[337242222,1725533438897,-500.0,0.00020861,2]
[337242224,1725533438907,-500.0,0.00020861,2]
[337242226,1725533438916,-500.0,0.00020861,2]
[337242228,1725533438925,-500.0,0.00020861,2]
[337242230,1725533438934,-500.0,0.00020861,2]
[337242232,1725533438944,-500.0,0.00020861,2]
[337242234,1725533438953,-500.0,0.00020861,2]
[337242236,1725533438964,-500.0,0.00020861,2]
[337242238,1725533438974,-500.0,0.00020862,2]
[337242240,1725533438985,-500.0,0.00020862,2]
[337242242,1725533438997,-353.38973302,0.00020862,2]
[337242244,1725533439007,-270.50850798,0.00020862,2]
[337242246,1725533439016,-500.0,0.00020862,2]
[337242249,1725533439026,-500.0,0.00020862,2]
[337242251,1725533439036,-500.0,0.00020862,2]
[337242253,1725533439045,-500.0,0.00020862,2]
[337242255,1725533439054,-500.0,0.00020862,2]
[337242257,1725533439063,-242.58829076,0.00020862,2]
[337242259,1725533439072,-500.0,0.00020862,2]
[337242261,1725533439081,-500.0,0.00020862,2]
[337242263,1725533439090,-500.0,0.00020862,2]
[337242265,1725533439100,-192.27879761,0.00020862,2]
[337242267,1725533439109,-161734.21990092,0.00020862,15]
[337242269,1725533439119,-58096.55408628,0.00020862,15]
[337242271,1725533439128,-53874.9485986,0.00020863,2]
[337242273,1725533439140,-5884.84798012,0.00020863,2]
[337242276,1725533439158,-55153.60877218,0.00020863,2]
[337242327,1725533443274,-743.7949033,0.00020863,2]
[337242340,1725533560134,275.1273999,0.00019865,2]
[337242342,1725533634000,187.5,0.00019999,2]
[337242345,1725533729607,6661.1840875,0.00019784,2]
[337242347,1725533913906,295.2,0.0002,2]
[337242348,1725534017338,479.61106526,0.00020172,2]
[337242355,1725534477627,852.0523059,0.00019711,2]
[337242371,1725534632740,-3492.27082136,0.00020641,2]
[337242372,1725534632750,-2590.63676767,0.0002065,2]
[337242373,1725534632760,-484.97735703,0.00020652,2]
[337242374,1725534632771,-515.02264297,0.00020652,2]
[337242375,1725534632781,-1926.75089835,0.00020673,2]
[337242376,1725534632792,-300.0,0.00020686,2]
[337242377,1725534632804,-1000.0,0.00020687,2]
[337242378,1725534632814,-500.0,0.00020688,7]
[337242379,1725534632824,-500.0,0.00020688,7]
[337242380,1725534632833,-500.0,0.00020688,7]
[337242381,1725534632844,-500.0,0.00020688,7]
[337242382,1725534632855,-500.0,0.00020688,7]
[337242383,1725534632864,-500.0,0.00020688,7]
[337242384,1725534633240,-500.0,0.00020688,7]
[337242385,1725534633258,-500.0,0.00020688,7]
[337242386,1725534633268,-500.0,0.00020688,7]
[337242387,1725534633278,-500.0,0.00020688,7]
[337242388,1725534633288,-500.0,0.00020688,7]
[337242389,1725534633298,-500.0,0.00020688,7]
[337242390,1725534633309,-500.0,0.00020688,7]
[337242391,1725534633318,-500.0,0.00020688,7]
[337242392,1725534633327,-587.48,0.00020688,7]
[337242393,1725534633336,-500.0,0.00020688,7]
[337242394,1725534633346,-500.0,0.00020688,7]
[337242395,1725534633355,-500.0,0.00020688,7]
[337242396,1725534633365,-500.0,0.00020688,7]
[337242397,1725534633376,-500.0,0.00020688,7]
[337242398,1725534633386,-500.0,0.00020688,7]
[337242399,1725534633396,-500.0,0.00020688,7]
[337242400,1725534633406,-410.87,0.00020688,7]
[337242401,1725534633416,-500.0,0.00020688,7]
[337242402,1725534633426,-1017.55,0.00020721,3]
[337242403,1725534633436,-508.78,0.00020721,3]
[337242404,1725534633446,-254.39,0.00020721,3]
[337242405,1725534633456,-763.17,0.00020721,3]
[337242406,1725534633465,-12860.65308373,0.00020731,2]
[337242460,1725534639002,-2533.28063369,0.00020731,2]
[337242462,1725534639014,-137342.33176058,0.00020731,2]
[337242464,1725534639027,-22375.42528417,0.00020738,2]
[337242466,1725534639038,-500.0,0.00020739,2]
[337242468,1725534639047,-500.0,0.00020739,2]
[337242470,1725534639058,-361.39673767,0.00020739,2]
[337242472,1725534639070,-500.0,0.00020739,2]
[337242474,1725534639080,-500.0,0.00020739,2]
[337242476,1725534639091,-500.0,0.00020739,2]
[337242477,1725534639103,-500.0,0.00020739,2]
[337242478,1725534639112,-500.0,0.00020739,2]
[337242479,1725534639123,-500.0,0.00020739,2]
[337242480,1725534639133,-55555.0,0.00020741,3]
[337242481,1725534639143,-353.38973302,0.00020741,2]
[337242482,1725534639154,-192.27879761,0.00020741,2]
[337242483,1725534639164,-500.0,0.00020741,2]
[337242484,1725534639173,-500.0,0.00020741,2]
[337242485,1725534639183,-500.0,0.00020741,2]
[337242486,1725534639192,-500.0,0.00020741,2]
[337242487,1725534639203,-500.0,0.00020741,2]
[337242488,1725534639212,-500.0,0.00020741,2]
[337242489,1725534639223,-500.0,0.00020741,2]
[337242490,1725534639232,-270.50850798,0.00020741,2]
[337242491,1725534639242,-242.58829076,0.00020741,2]
[337242492,1725534639251,-500.0,0.00020741,2]
[337242493,1725534639260,-500.0,0.00020741,2]
[337242494,1725534639269,-500.0,0.00020741,2]
[337242495,1725534639279,-151.0,0.00020742,2]
[337242496,1725534639288,-357.64228,0.00020742,2]
[337242497,1725534639298,-357.64228,0.00020742,2]
[337242498,1725534639307,-151.0,0.00020742,2]
[337242499,1725534639317,-151861.07816759,0.00020742,15]
[337242500,1725534639585,-2350.0368303,0.00020742,15]
[337242501,1725534639597,-3062.45863511,0.00020742,15]
[337242507,1725534640836,-2073.27057631,0.00020742,15]
[337242560,1725534646644,-593.57,0.00020732,3]
[337242561,1725534646654,-531.00809943,0.00020739,2]
[337242562,1725534646663,-500.0,0.00020739,2]
[337242563,1725534646672,-500.0,0.00020739,2]
[337242564,1725534646682,-429.04408197,0.00020739,2]
[337242565,1725534646691,-500.0,0.00020739,2]
[337242566,1725534646701,-500.0,0.00020739,2]
[337242567,1725534646710,-7820.55034897,0.00020742,15]
[337242568,1725534646719,-48445.30746963,0.00020742,15]
[337243260,1725535370443,2386.17207079,0.0001,2]
[337243265,1725535699969,16488.61267118,0.0002,2]
[337243266,1725535720756,11996.61689208,0.00020377,2]
[337243267,1725535722612,12592.97235622,0.0001999,2]
[337243374,1725535837981,-152.193958,0.00020752,2]
[337243375,1725535837992,-1000.0,0.0002078,2]
[337243376,1725535838001,-150.112235,0.000208,5]
[337243377,1725535838011,-150.112233,0.000208,4]
[337243378,1725535838021,-150.112233,0.000208,4]
[337243379,1725535838032,-150.112233,0.000208,2]
[337243380,1725535838044,-150.112233,0.000208,3]
[337243381,1725535838056,-306.0,0.000208,2]
[337243382,1725535838066,-502.15263746,0.000208,2]
[337243383,1725535838077,-153.0,0.000208,2]
[337243384,1725535838088,-300.0,0.00020935,2]
[337243385,1725535838098,-150.01,0.00020936,2]
[337243386,1725535838109,-2641.91892577,0.00020936,2]
[337243387,1725535838118,-351.842325,0.00020986,2]
[337243389,1725535838129,-1000.0,0.00021,2]
[337243391,1725535838139,-200.2,0.00021,2]
[337243392,1725535838151,-176.079603,0.00021,2]
[337243393,1725535838160,-155.0,0.0002101,5]
[337243394,1725535838171,-465.73055326,0.00021181,2]
[337243395,1725535838182,-505.31020651,0.000212,2]
[337243396,1725535838192,-153.0,0.00021284,2]
[337243397,1725535838203,-153.0,0.00021284,2]
[337243398,1725535838214,-153.0,0.00021284,2]
[337243399,1725535838224,-153.0,0.00021284,2]
[337243400,1725535838233,-306.0,0.00021284,2]
[337243401,1725535838244,-394.1964392,0.00021284,2]
[337243402,1725535838254,-523.0,0.00021401,2]
[337243403,1725535838263,-150.0,0.00021401,2]
[337243404,1725535838272,-1000.0,0.00021408,2]
[337243405,1725535838282,-2793.81665712,0.00021408,2]
[337243406,1725535838292,-1734.07580847,0.00021408,2]
[337243407,1725535838302,-2793.81665708,0.00021411,2]
[337243408,1725535838311,-2793.81665708,0.00021413,2]
[337243409,1725535838321,-2793.81665708,0.00021416,2]
[337243410,1725535838331,-2793.81665708,0.00021418,2]
[337243411,1725535838340,-42483.54731001,0.00021418,3]
[337243428,1725535839951,-13071.45268999,0.00021418,3]
[337243429,1725535839961,-500.0,0.00021473,2]
[337243430,1725535839971,-500.0,0.00021473,2]
[337243431,1725535839980,-200.20049614,0.00021473,2]
[337243432,1725535839990,-500.0,0.00021473,2]
[337243433,1725535839999,-494.64,0.00021487,3]
[337243434,1725535840009,-247.32,0.00021487,3]
[337243435,1725535840019,-741.99,0.00021487,3]
[337243436,1725535840029,-500.0,0.00021496,2]
[337243437,1725535840040,-500.0,0.00021496,2]
[337243438,1725535840051,-500.0,0.00021496,2]
[337243439,1725535840060,-500.0,0.00021496,2]
[337243440,1725535840070,-500.0,0.00021496,2]
[337243441,1725535840081,-500.0,0.00021496,2]
[337243442,1725535840091,-604.30114586,0.00021496,2]
[337243443,1725535840102,-500.0,0.00021496,2]
[337243444,1725535840115,-500.0,0.00021496,2]
[337243445,1725535840126,-425.18472857,0.00021497,2]
[337243446,1725535840136,-500.0,0.00021497,2]
[337243447,1725535840147,-192.27879761,0.00021497,2]
[337243448,1725535840157,-500.0,0.00021497,2]
[337243449,1725535840167,-500.0,0.00021497,2]
[337243450,1725535840176,-500.0,0.00021497,2]
[337243451,1725535840186,-500.0,0.00021497,2]
[337243452,1725535840196,-500.0,0.00021497,2]
[337243453,1725535840206,-500.0,0.00021497,2]
[337243454,1725535840215,-500.0,0.00021497,2]
[337243455,1725535840226,-324.33097561,0.00021497,2]
[337243456,1725535840236,-500.0,0.00021497,2]
[337243457,1725535840246,-500.0,0.00021497,2]
[337243458,1725535840257,-500.0,0.00021497,2]
[337243459,1725535840267,-500.0,0.00021497,2]
[337243460,1725535840277,-500.0,0.00021497,2]
[337243461,1725535840286,-308.57140893,0.00021497,2]
[337243462,1725535840297,-500.0,0.00021497,2]
[337243463,1725535840306,-145506.442886,0.00021497,3]
[337243464,1725535840315,-181365.71709876,0.00021498,15]
[337243465,1725535840327,-41504.07136259,0.00021498,15]
[337243466,1725535840338,-213941.56427106,0.00021498,3]
[337243467,1725535840358,-77071.32150194,0.00021498,3]
[337243468,1725535840574,-150.112233,0.000215,3]
[337243469,1725535840584,-150.112233,0.000215,2]
[337243470,1725535840593,-150.112233,0.000215,5]
[337243471,1725535840603,-150.112233,0.000215,4]
[337243472,1725535840612,-150.112233,0.000215,3]
[337243473,1725535840621,-150.112233,0.000215,4]
[337243474,1725535840630,-150.112233,0.000215,4]
[337243475,1725535840639,-150.112233,0.000215,3]
[337243476,1725535840648,-150.112233,0.000215,5]
[337243477,1725535840660,-150.112233,0.000215,2]
[337243478,1725535840672,-150.112233,0.000215,3]
[337243479,1725535840684,-150.112233,0.000215,3]
[337243480,1725535840694,-150.112233,0.000215,3]
[337243481,1725535840705,-150.112233,0.000215,2]
[337243482,1725535840716,-150.112233,0.000215,2]
[337243483,1725535840726,-150.112233,0.000215,4]
[337243484,1725535840736,-150.112233,0.000215,4]
[337243485,1725535840746,-150.112233,0.000215,5]
[337243486,1725535840755,-205.13450902,0.00021508,2]
[337243488,1725535842733,-151.0,0.00021498,2]
[337243489,1725535842743,-1027.40185898,0.00021508,2]
[337243490,1725535842752,-1232.536368,0.00021508,2]
[337243491,1725535842763,-151.0,0.00021508,2]
[337243492,1725535842773,-151.0,0.00021508,2]
[337243493,1725535842784,-151.0,0.00021508,2]